{"text_format":"1","workbook":"xlsx","n_sheets":6,"sheets":["Intro","Summary","1_Původní","2_Upravený","3_Rozdíly","CisNS"],"not_rendered":{"charts":0,"images":2,"macros":1,"external_links":0,"defined_names":1,"comments":0,"pivot_tables":0},"unopened":[],"bounds":{"document_bytes":16777216,"sheet_cells":100000,"rows_first":2000,"rows_last":500,"rows_between":2000,"halvings":0,"cell_chars":16384,"cell_head_chars":4096},"cells_cut":0,"cells_raw":0,"read":"whole","date_system":"1900"}

{"sheet":"Intro","index":0,"n_rows":5,"n_cols":2,"rows_kept":5,"cut":false,"hidden":false,"merged":[]}
[]
[null,"Pro správnou funkčnost šablony je zapotřebí povolit makra."]
[null,"A jelikož nemáte makra povolená, zobrazuje se tento list."]
[null,"Makra povolíte v menu Soubor/Možnosti/Centrum zabezpečení/Nastavení centra zabezpečení/ Nastavení maker a zaškrtněte volbu Povolit všechny makra"]
[null,"Po povolení maker šablonu zavřete a otevřete znovu."]

{"sheet":"Summary","index":1,"n_rows":17,"n_cols":7,"rows_kept":17,"cut":false,"hidden":true,"merged":[[7,3,7,5],[7,1,8,2],[14,1,15,2],[14,3,15,3]]}
[null,null,null,null,null,null,{"$f":"SUM(F:F)","v":0}]
[null,"Plánovací proces 2021 - šablona pro úpravu návrhu rozpočtu analytického účtu do středisek a měsíců"]
[]
[null,"Garant","STRAV"]
[null,"Jméno","Bc. Ivana Benešová, DiS."]
[null,"Email","Ivana.Benesova@fnol.cz"]
[]
[null,"Analytický účet",null,"Rozpočet"]
[null,null,null,"1_Původní","2_Upravený","3_Rozdíly"]
[null,50116010,"Nápoje - horké provozy",{"$f":"IFERROR(VLOOKUP(B10,'1_Původní'!A:P,16,FALSE),0)","v":29999.999899999999},{"$f":"IFERROR(VLOOKUP(B10,'2_Upravený'!A:P,16,FALSE),0)","v":30000},{"$f":"ROUND(E10-D10,0)","v":0}]
[null,null,null,{"$f":"IFERROR(VLOOKUP(B11,'1_Původní'!A:P,16,FALSE),0)","v":0},{"$f":"IFERROR(VLOOKUP(B11,'2_Upravený'!A:P,16,FALSE),0)","v":0},{"$f":"ROUND(E11-D11,0)","v":0}]
[]
[null,null,null,null,null,{"$f":"ROUND(SUM(F10:F11),0)","v":0}]
[]
[null,"Přehled plánovaných rezerv za garanta"]
[null,null,null,null,null,{"$f":"IF(COUNTIF('2_Upravený'!$Q:$Q,\"Obrat bez specifikace NS\")>0,COUNTIF('2_Upravený'!$Q:$Q,\"Obrat bez specifikace NS\"),\"\")","v":""}]
[null,null,null,null,{"$f":"IF($F$16=\"\",\"\",\"Obrat\")","v":""},{"$f":"IF(COUNTIF('2_Upravený'!$Q:$Q,\"Obrat bez specifikace NS\")>0,SUMIF('2_Upravený'!$Q:$Q,\"Obrat bez specifikace NS\",'2_Upravený'!$P:$P),\"\")","v":""}]

{"sheet":"1_Původní","index":2,"n_rows":14,"n_cols":16,"rows_kept":14,"cut":false,"hidden":true,"merged":[]}
["Legenda",null,"Hodnoty v CZK"]
["Účet","Název účtu"]
[null,"NS","Název NS",202001,202002,202003,202004,202005,202006,202007,202008,202009,202010,202011,202012,"2020 celkem"]
[]
[50116010,"Nápoje - horké provozy",null,{"$f":"SUM(D6:D16)","v":3547.4335999999998},4658.9556999999995,3209.3555999999999,1956.1114,302.66239999999999,4999.8903,2661.5360999999998,3165.8040000000001,3154.6768999999999,1497.3692999999998,0,846.20460000000003,29999.999899999999]
[null,"9091","Obchodní úsek",303.64949999999999,269.43040000000002,535.22659999999996,908.03219999999999,302.66239999999999,520.86900000000003,625.05169999999998,937.55510000000004,0,228.0624,0,0,{"$f":"SUM(D6:O6)","v":4630.5392999999995}]
[null,"9207","\"Pevnůstka\" - archív",0,423.10230000000001,0,0,0,282.06819999999999,282.06819999999999,282.06819999999999,282.06819999999999,564.13639999999998,0,282.06819999999999,{"$f":"SUM(D7:O7)","v":2397.5796999999998}]
[null,"9305","Ostatní provozy,sklady,stěhovací četa",0,0,0,0,0,0,416.7011,0,0,0,0,0,416.7011]
[null,"9306","Ostraha FNOL",0,0,0,0,0,1754.6555000000001,0,0,0,0,0,0,1754.6555000000001]
[null,"9308","Parková skupina",0,0,0,0,0,2036.6787999999999,1337.7150999999999,1946.1806999999999,319.57760000000002,0,0,0,5640.1521999999995]
[null,"9401","Provoz prádelny",3243.7840999999999,3243.7840999999999,2538.6136000000001,282.06819999999999,0,0,0,0,0,0,0,0,9308.25]
[null,"9411","Provoz potrubní pošty",0,0,0,0,0,0,0,0,0,705.17049999999995,0,564.13639999999998,1269.3069]
[null,"9501","Provoz stravování - ostatní stravování",0,722.63890000000004,0,766.01099999999997,0,405.61880000000002,0,0,2407.0317,0,0,0,4301.3004000000001]
[null,"9502","Provoz stravování - tablet, pacientská strava",0,0,135.5154,0,0,0,0,0,145.99940000000001,0,0,0,281.51480000000004]

{"sheet":"2_Upravený","index":3,"n_rows":16,"n_cols":21,"rows_kept":16,"cut":false,"hidden":true,"merged":[[0,16,1,16]]}
["Legenda",null,"Hodnoty v CZK",null,null,null,null,null,null,null,null,null,null,null,null,null,"Rozdíl"]
["Účet","Název účtu"]
[null,"NS","Název NS",202001,202002,202003,202004,202005,202006,202007,202008,202009,202010,202011,202012,"2020 celkem",{"$f":"SUM(Q4:Q17)","v":0}]
[]
[50116010,"Nápoje - horké provozy",null,{"$f":"SUM(D6:D16)","v":1176.3618852961804},2181.3043711290111,1591.3480945008516,1866.9616261556548,826.81117726395269,4888.2402208799076,3568.5742241436278,4053.2979557166723,2689.076734168143,3909.6576976741021,499.99999999999994,2748.3660130718954,30000,{"$f":"ROUND(P5-SUMIF('1_Původní'!A:A,'2_Upravený'!A5,'1_Původní'!P:P),0)","v":0}]
[null,"9091","Obchodní úsek",327.87703583468129,290.92766797163353,577.93117099772803,980.48212224437884,326.8111772639528,562.42800919538684,674.92322114618491,1012.3605904824088,0,246.25900486364515,0,0,{"$f":"SUM(D6:O6)","v":5000},{"$f":"IF(AND(ROUND(P6,0)<>0,B6=\"\"),\"Obrat bez specifikace NS\",\"\")","v":""},null,"Orig",{"$f":"$A$5","v":50116010}]
[null,"9207","\"Pevnůstka\" - archív",0,705.88235294117646,0,0,0,470.58823529411762,470.58823529411762,470.58823529411762,470.58823529411762,941.17647058823525,0,470.58823529411762,3999.9999999999995,{"$f":"IF(AND(ROUND(P7,0)<>0,B7=\"\"),\"Obrat bez specifikace NS\",\"\")","v":""},null,"Orig",{"$f":"$A$5","v":50116010}]
[null,"9305","Ostatní provozy,sklady,stěhovací četa",0,0,0,0,0,0,500,0,0,0,0,0,500,"",null,"Orig",50116010]
[null,"9306","Ostraha FNOL",0,0,0,0,0,1000,0,0,0,0,0,0,1000,"",null,"Orig",50116010]
[null,"9308","Parková skupina",0,0,0,0,0,2166.6211064304257,1423.0627677033253,2070.3491299401458,339.96699592610287,0,0,0,6000,"",null,"Orig",50116010]
[null,"9401","Provoz prádelny",348.48484946149921,348.48484946149921,272.72726882066985,30.303032256331747,0,0,0,0,0,0,0,0,1000,"",null,"Orig",50116010]
[null,"9411","Provoz potrubní pošty",0,0,0,0,0,0,0,0,0,2222.2222222222217,0,1777.7777777777776,3999.9999999999991,"",null,"Orig",50116010]
[null,"9501","Provoz stravování - ostatní stravování",0,336.009500754702,0,356.17647165494418,0,188.60286995997771,0,0,1119.2111576303762,0,0,0,2000,"",null,"Orig",50116010]
[null,"9502","Provoz stravování - tablet, pacientská strava",0,0,240.68965468245364,0,0,0,0,0,259.31034531754636,0,0,0,500,"",null,"Orig",50116010]
[null,"9051",{"$f":"IFERROR(VLOOKUP(B15,CisNS!$A:$B,2,FALSE),\"\")","v":"Útvar hospodářsko technické správy"},499.99999999999994,499.99999999999994,499.99999999999994,499.99999999999994,499.99999999999994,499.99999999999994,499.99999999999994,499.99999999999994,499.99999999999994,499.99999999999994,499.99999999999994,499.99999999999994,5999.9999999999991,{"$f":"IF(AND(ROUND(P15,0)<>0,B15=\"\"),\"Obrat bez specifikace NS\",\"\")","v":""},null,null,50116010]
[null,"",{"$f":"IFERROR(VLOOKUP(B16,CisNS!$A:$B,2,FALSE),\"\")","v":""},null,null,null,null,null,null,null,null,null,null,null,null,{"$f":"SUM(D16:O16)","v":0},{"$f":"IF(AND(ROUND(P16,0)<>0,B16=\"\"),\"Obrat bez specifikace NS\",\"\")","v":""},null,null,{"$f":"T6","v":50116010},"End"]

{"sheet":"3_Rozdíly","index":4,"n_rows":16,"n_cols":16,"rows_kept":16,"cut":false,"hidden":true,"merged":[]}
["Legenda",null,"Hodnoty v CZK"]
["Účet","Název účtu"]
[null,"NS","Název NS",202001,202002,202003,202004,202005,202006,202007,202008,202009,202010,202011,202012,"2020 celkem"]
[]
[50116010,"Nápoje - horké provozy",null,{"$f":"SUM(D16:D16)","v":0},0,0,0,0,0,0,0,0,0,0,0,0]
[null,{"$f":"IF('2_Upravený'!B6=\"\",\"\",'2_Upravený'!B6)","v":"9091"},{"$f":"IF('2_Upravený'!C6=\"\",\"\",'2_Upravený'!C6)","v":"Obchodní úsek"},{"$f":"'2_Upravený'!D6-'1_Původní'!D6","v":24.227535834681305},{"$f":"'2_Upravený'!E6-'1_Původní'!E6","v":21.497267971633505},{"$f":"'2_Upravený'!F6-'1_Původní'!F6","v":42.704570997728069},{"$f":"'2_Upravený'!G6-'1_Původní'!G6","v":72.449922244378854},{"$f":"'2_Upravený'!H6-'1_Původní'!H6","v":24.148777263952809},{"$f":"'2_Upravený'!I6-'1_Původní'!I6","v":41.559009195386807},{"$f":"'2_Upravený'!J6-'1_Původní'!J6","v":49.871521146184932},{"$f":"'2_Upravený'!K6-'1_Původní'!K6","v":74.8054904824088},{"$f":"'2_Upravený'!L6-'1_Původní'!L6","v":0},{"$f":"'2_Upravený'!M6-'1_Původní'!M6","v":18.196604863645149},{"$f":"'2_Upravený'!N6-'1_Původní'!N6","v":0},{"$f":"'2_Upravený'!O6-'1_Původní'!O6","v":0},{"$f":"SUM(D6:O6)","v":369.4607000000002}]
[null,{"$f":"IF('2_Upravený'!B7=\"\",\"\",'2_Upravený'!B7)","v":"9207"},{"$f":"IF('2_Upravený'!C7=\"\",\"\",'2_Upravený'!C7)","v":"\"Pevnůstka\" - archív"},{"$f":"'2_Upravený'!D7-'1_Původní'!D7","v":0},{"$f":"'2_Upravený'!E7-'1_Původní'!E7","v":282.78005294117645},{"$f":"'2_Upravený'!F7-'1_Původní'!F7","v":0},{"$f":"'2_Upravený'!G7-'1_Původní'!G7","v":0},{"$f":"'2_Upravený'!H7-'1_Původní'!H7","v":0},{"$f":"'2_Upravený'!I7-'1_Původní'!I7","v":188.52003529411763},{"$f":"'2_Upravený'!J7-'1_Původní'!J7","v":188.52003529411763},{"$f":"'2_Upravený'!K7-'1_Původní'!K7","v":188.52003529411763},{"$f":"'2_Upravený'!L7-'1_Původní'!L7","v":188.52003529411763},{"$f":"'2_Upravený'!M7-'1_Původní'!M7","v":377.04007058823527},{"$f":"'2_Upravený'!N7-'1_Původní'!N7","v":0},{"$f":"'2_Upravený'!O7-'1_Původní'!O7","v":188.52003529411763},{"$f":"SUM(D7:O7)","v":1602.4203}]
[null,{"$f":"IF('2_Upravený'!B8=\"\",\"\",'2_Upravený'!B8)","v":"9305"},{"$f":"IF('2_Upravený'!C8=\"\",\"\",'2_Upravený'!C8)","v":"Ostatní provozy,sklady,stěhovací četa"},{"$f":"'2_Upravený'!D8-'1_Původní'!D8","v":0},{"$f":"'2_Upravený'!E8-'1_Původní'!E8","v":0},{"$f":"'2_Upravený'!F8-'1_Původní'!F8","v":0},{"$f":"'2_Upravený'!G8-'1_Původní'!G8","v":0},{"$f":"'2_Upravený'!H8-'1_Původní'!H8","v":0},{"$f":"'2_Upravený'!I8-'1_Původní'!I8","v":0},{"$f":"'2_Upravený'!J8-'1_Původní'!J8","v":83.298900000000003},{"$f":"'2_Upravený'!K8-'1_Původní'!K8","v":0},{"$f":"'2_Upravený'!L8-'1_Původní'!L8","v":0},{"$f":"'2_Upravený'!M8-'1_Původní'!M8","v":0},{"$f":"'2_Upravený'!N8-'1_Původní'!N8","v":0},{"$f":"'2_Upravený'!O8-'1_Původní'!O8","v":0},83.298900000000003]
[null,{"$f":"IF('2_Upravený'!B9=\"\",\"\",'2_Upravený'!B9)","v":"9306"},{"$f":"IF('2_Upravený'!C9=\"\",\"\",'2_Upravený'!C9)","v":"Ostraha FNOL"},{"$f":"'2_Upravený'!D9-'1_Původní'!D9","v":0},{"$f":"'2_Upravený'!E9-'1_Původní'!E9","v":0},{"$f":"'2_Upravený'!F9-'1_Původní'!F9","v":0},{"$f":"'2_Upravený'!G9-'1_Původní'!G9","v":0},{"$f":"'2_Upravený'!H9-'1_Původní'!H9","v":0},{"$f":"'2_Upravený'!I9-'1_Původní'!I9","v":-754.65550000000007},{"$f":"'2_Upravený'!J9-'1_Původní'!J9","v":0},{"$f":"'2_Upravený'!K9-'1_Původní'!K9","v":0},{"$f":"'2_Upravený'!L9-'1_Původní'!L9","v":0},{"$f":"'2_Upravený'!M9-'1_Původní'!M9","v":0},{"$f":"'2_Upravený'!N9-'1_Původní'!N9","v":0},{"$f":"'2_Upravený'!O9-'1_Původní'!O9","v":0},-754.65550000000007]
[null,{"$f":"IF('2_Upravený'!B10=\"\",\"\",'2_Upravený'!B10)","v":"9308"},{"$f":"IF('2_Upravený'!C10=\"\",\"\",'2_Upravený'!C10)","v":"Parková skupina"},{"$f":"'2_Upravený'!D10-'1_Původní'!D10","v":0},{"$f":"'2_Upravený'!E10-'1_Původní'!E10","v":0},{"$f":"'2_Upravený'!F10-'1_Původní'!F10","v":0},{"$f":"'2_Upravený'!G10-'1_Původní'!G10","v":0},{"$f":"'2_Upravený'!H10-'1_Původní'!H10","v":0},{"$f":"'2_Upravený'!I10-'1_Původní'!I10","v":129.94230643042579},{"$f":"'2_Upravený'!J10-'1_Původní'!J10","v":85.347667703325442},{"$f":"'2_Upravený'!K10-'1_Původní'!K10","v":124.16842994014587},{"$f":"'2_Upravený'!L10-'1_Původní'!L10","v":20.38939592610285},{"$f":"'2_Upravený'!M10-'1_Původní'!M10","v":0},{"$f":"'2_Upravený'!N10-'1_Původní'!N10","v":0},{"$f":"'2_Upravený'!O10-'1_Původní'!O10","v":0},359.84779999999995]
[null,{"$f":"IF('2_Upravený'!B11=\"\",\"\",'2_Upravený'!B11)","v":"9401"},{"$f":"IF('2_Upravený'!C11=\"\",\"\",'2_Upravený'!C11)","v":"Provoz prádelny"},{"$f":"'2_Upravený'!D11-'1_Původní'!D11","v":-2895.2992505385005},{"$f":"'2_Upravený'!E11-'1_Původní'!E11","v":-2895.2992505385005},{"$f":"'2_Upravený'!F11-'1_Původní'!F11","v":-2265.8863311793302},{"$f":"'2_Upravený'!G11-'1_Původní'!G11","v":-251.76516774366826},{"$f":"'2_Upravený'!H11-'1_Původní'!H11","v":0},{"$f":"'2_Upravený'!I11-'1_Původní'!I11","v":0},{"$f":"'2_Upravený'!J11-'1_Původní'!J11","v":0},{"$f":"'2_Upravený'!K11-'1_Původní'!K11","v":0},{"$f":"'2_Upravený'!L11-'1_Původní'!L11","v":0},{"$f":"'2_Upravený'!M11-'1_Původní'!M11","v":0},{"$f":"'2_Upravený'!N11-'1_Původní'!N11","v":0},{"$f":"'2_Upravený'!O11-'1_Původní'!O11","v":0},-8308.25]
[null,{"$f":"IF('2_Upravený'!B12=\"\",\"\",'2_Upravený'!B12)","v":"9411"},{"$f":"IF('2_Upravený'!C12=\"\",\"\",'2_Upravený'!C12)","v":"Provoz potrubní pošty"},{"$f":"'2_Upravený'!D12-'1_Původní'!D12","v":0},{"$f":"'2_Upravený'!E12-'1_Původní'!E12","v":0},{"$f":"'2_Upravený'!F12-'1_Původní'!F12","v":0},{"$f":"'2_Upravený'!G12-'1_Původní'!G12","v":0},{"$f":"'2_Upravený'!H12-'1_Původní'!H12","v":0},{"$f":"'2_Upravený'!I12-'1_Původní'!I12","v":0},{"$f":"'2_Upravený'!J12-'1_Původní'!J12","v":0},{"$f":"'2_Upravený'!K12-'1_Původní'!K12","v":0},{"$f":"'2_Upravený'!L12-'1_Původní'!L12","v":0},{"$f":"'2_Upravený'!M12-'1_Původní'!M12","v":1517.0517222222218},{"$f":"'2_Upravený'!N12-'1_Původní'!N12","v":0},{"$f":"'2_Upravený'!O12-'1_Původní'!O12","v":1213.6413777777775},2730.6930999999995]
[null,{"$f":"IF('2_Upravený'!B13=\"\",\"\",'2_Upravený'!B13)","v":"9501"},{"$f":"IF('2_Upravený'!C13=\"\",\"\",'2_Upravený'!C13)","v":"Provoz stravování - ostatní stravování"},{"$f":"'2_Upravený'!D13-'1_Původní'!D13","v":0},{"$f":"'2_Upravený'!E13-'1_Původní'!E13","v":-386.62939924529803},{"$f":"'2_Upravený'!F13-'1_Původní'!F13","v":0},{"$f":"'2_Upravený'!G13-'1_Původní'!G13","v":-409.83452834505579},{"$f":"'2_Upravený'!H13-'1_Původní'!H13","v":0},{"$f":"'2_Upravený'!I13-'1_Původní'!I13","v":-217.01593004002231},{"$f":"'2_Upravený'!J13-'1_Původní'!J13","v":0},{"$f":"'2_Upravený'!K13-'1_Původní'!K13","v":0},{"$f":"'2_Upravený'!L13-'1_Původní'!L13","v":-1287.8205423696238},{"$f":"'2_Upravený'!M13-'1_Původní'!M13","v":0},{"$f":"'2_Upravený'!N13-'1_Původní'!N13","v":0},{"$f":"'2_Upravený'!O13-'1_Původní'!O13","v":0},-2301.3004000000001]
[null,{"$f":"IF('2_Upravený'!B14=\"\",\"\",'2_Upravený'!B14)","v":"9502"},{"$f":"IF('2_Upravený'!C14=\"\",\"\",'2_Upravený'!C14)","v":"Provoz stravování - tablet, pacientská strava"},{"$f":"'2_Upravený'!D14-'1_Původní'!D14","v":0},{"$f":"'2_Upravený'!E14-'1_Původní'!E14","v":0},{"$f":"'2_Upravený'!F14-'1_Původní'!F14","v":105.17425468245364},{"$f":"'2_Upravený'!G14-'1_Původní'!G14","v":0},{"$f":"'2_Upravený'!H14-'1_Původní'!H14","v":0},{"$f":"'2_Upravený'!I14-'1_Původní'!I14","v":0},{"$f":"'2_Upravený'!J14-'1_Původní'!J14","v":0},{"$f":"'2_Upravený'!K14-'1_Původní'!K14","v":0},{"$f":"'2_Upravený'!L14-'1_Původní'!L14","v":113.31094531754636},{"$f":"'2_Upravený'!M14-'1_Původní'!M14","v":0},{"$f":"'2_Upravený'!N14-'1_Původní'!N14","v":0},{"$f":"'2_Upravený'!O14-'1_Původní'!O14","v":0},218.48519999999999]
[null,{"$f":"IF('2_Upravený'!B15=\"\",\"\",'2_Upravený'!B15)","v":"9051"},{"$f":"IF('2_Upravený'!C15=\"\",\"\",'2_Upravený'!C15)","v":"Útvar hospodářsko technické správy"},{"$f":"'2_Upravený'!D15-'1_Původní'!D15","v":499.99999999999994},{"$f":"'2_Upravený'!E15-'1_Původní'!E15","v":499.99999999999994},{"$f":"'2_Upravený'!F15-'1_Původní'!F15","v":499.99999999999994},{"$f":"'2_Upravený'!G15-'1_Původní'!G15","v":499.99999999999994},{"$f":"'2_Upravený'!H15-'1_Původní'!H15","v":499.99999999999994},{"$f":"'2_Upravený'!I15-'1_Původní'!I15","v":499.99999999999994},{"$f":"'2_Upravený'!J15-'1_Původní'!J15","v":499.99999999999994},{"$f":"'2_Upravený'!K15-'1_Původní'!K15","v":499.99999999999994},{"$f":"'2_Upravený'!L15-'1_Původní'!L15","v":499.99999999999994},{"$f":"'2_Upravený'!M15-'1_Původní'!M15","v":499.99999999999994},{"$f":"'2_Upravený'!N15-'1_Původní'!N15","v":499.99999999999994},{"$f":"'2_Upravený'!O15-'1_Původní'!O15","v":499.99999999999994},5999.9999999999991]
[null,{"$f":"IF('2_Upravený'!B16=\"\",\"\",'2_Upravený'!B16)","v":""},{"$f":"IF('2_Upravený'!C16=\"\",\"\",'2_Upravený'!C16)","v":""},{"$f":"'2_Upravený'!D16-'1_Původní'!D16","v":0},{"$f":"'2_Upravený'!E16-'1_Původní'!E16","v":0},{"$f":"'2_Upravený'!F16-'1_Původní'!F16","v":0},{"$f":"'2_Upravený'!G16-'1_Původní'!G16","v":0},{"$f":"'2_Upravený'!H16-'1_Původní'!H16","v":0},{"$f":"'2_Upravený'!I16-'1_Původní'!I16","v":0},{"$f":"'2_Upravený'!J16-'1_Původní'!J16","v":0},{"$f":"'2_Upravený'!K16-'1_Původní'!K16","v":0},{"$f":"'2_Upravený'!L16-'1_Původní'!L16","v":0},{"$f":"'2_Upravený'!M16-'1_Původní'!M16","v":0},{"$f":"'2_Upravený'!N16-'1_Původní'!N16","v":0},{"$f":"'2_Upravený'!O16-'1_Původní'!O16","v":0},{"$f":"SUM(D16:O16)","v":0}]

{"sheet":"CisNS","index":5,"n_rows":1042,"n_cols":2,"rows_kept":1042,"cut":false,"hidden":true,"merged":[]}
["pracv","pracvt"]
["0101","Vedení klinického pracoviště"]
["0102",""]
["0103",""]
["0104","OP - Interaktivní kardiologie-moderní výukové metody"]
["0107","IOP- Mod.obn.přistr.vyb.komplex.kardiovas.centra"]
["0111","Lůžkové oddělení 1 "]
["0112","Lůžkové oddělení"]
["0113","Lůžkové oddělení 4 "]
["0115","Lůžkové oddělení ECMO"]
["0116","Lůžkové oddělení COVID 19"]
["0117","1IK: lůžkové oddělení"]
["0121","Ambulance"]
["0122","Ambulance - PAH "]
["0123","Ambulance"]
["0124","Ambulance"]
["0131","JIP "]
["0171","Odd. invaz. vyš. metod-kardiovertery"]
["0172","Katetrizační sál"]
["0176","IROP - Návazná péče"]
["0182","Rezidenti 2015 - nelékařské obory"]
["0183","Rezidenti 2016 - ošetřovatelská a intenzivní péče"]
["0184","1IK: rezidenti 2019 - nelékařské obory"]
["0185","Rezidenti 2018 - nelékařské obory"]
["0187","1IK: rezidenti 2013 - ošetřovatelská péče"]
["0188","Rezidenti 2017 - nelékařské obory"]
["0189","Rezidenti 2014 - nelékařské obory"]
["0194","Centrum - I.interna "]
["0201","Vedení klinického pracoviště gastroenterologiie"]
["0204","IOP - Mod.obn.přístr.vyb.centra komplexní onkologické péče "]
["0205","IOP - Mod.obn.přístr.vyb.traumatologického c."]
["0206","IOP - Mod.tech.vyb.v oblasti prevence nozokomiál.infek."]
["0213","Lůžkové oddělení 30C"]
["0216","Metabolická jednotka 30M"]
["0221","Ambulance"]
["0226",""]
["0231","JIP 30D"]
["0266","Pracoviště DK COS"]
["0271","Endoskopie"]
["0272","Dospávací hala "]
["0276","IROP - Návazná péče"]
["0284","2IK-GER: rezidenti 2019 - nelékařské obory"]
["0286","Rezidenti 2018 - lékaři"]
["0294","Centrum - II.interna"]
["0301","Vedení klinického pracoviště"]
["0306","IOP - Mod.tech.vyb.v oblasti prevence nozokomiál.infek."]
["0311","Lůžkové oddělení 39A + 39R"]
["0312","Lůžkové oddělení 39B + 39C"]
["0313","3IK: COVID - ORT"]
["0321","Ambulance"]
["0322","Ambulance - podiatrie"]
["0331","JIP 39D"]
["0352","Hemodialyzační středisko"]
["0353","CAPD"]
["0376","IROP - Návazná péče"]
["0384","Rezidenti 2010 projekt č. 1 (lékaři)"]
["0386","3IK: Rezidenti 2019 - lékaři"]
["0387","3IK: Rezidenti 2020 - lékaři"]
["0394","Centrum - III. interna"]
["0401","Vedení klinického pracoviště"]
["0404","IOP - Mod.obn.přístr.vyb.centra komplexní onkologické péče "]
["0406","IOP - Mod.tech.vyb.v oblasti prevence nozokomiál.infek."]
["0411","Lůžkové oddělení 8"]
["0412","Lůžkové oddělení 9 + 9P"]
["0413","Lůžkové oddělení 3"]
["0414","Lůžkové oddělení 4"]
["0421","Ambulance"]
["0422","Ambulance"]
["0432","JIP  6"]
["0464","Pracoviště COS"]
["0466","Pracoviště DK COS"]
["0471","Odd. invaz. vyš. metotody-endoskopie"]
["0476","IROP - Návazná péče"]
["0483","Rezidenti 2016 - ošetřovatelská a intenzivní péče"]
["0484","1CHIR: rezidenti 2019 - nelékařské obory"]
["0487","1CHIR: rezidenti 2013 - ošetřovatelská péče"]
["0489","Rezidenti 2014 - nelékařské obory"]
["0499","Rezidenti"]
["0501","Vedení klinického pracoviště"]
["0507","IOP- Mod.obn.přistr.vyb.komplex.kardiovas.centra"]
["0511","Lůžkové oddělení 37"]
["0521","Ambulance"]
["0532","JIP 37A "]
["0564","Pracoviště COS"]
["0566","Pracoviště DK COS"]
["0601","Vedení klinického pracoviště"]
["0604","IOP - Mod.obn.přístr.vyb.centra komplexní onkologické péče "]
["0605","IOP - Mod.obn.přístr.vyb.traumatologického c."]
["0606","IOP - Mod.tech.vyb.v oblasti prevence nozokomiál.infek."]
["0609","IOP - Mod.obn.přístr.vyb.cerebrovaskulárního centra FNOL"]
["0611","Lůžkové oddělení 34"]
["0612","Lůžkové oddělení 36A"]
["0621","Ambulance"]
["0631","JIP "]
["0662","Operační sál - lokální"]
["0666","Pracoviště DK COS"]
["0676","IROP - Návazná péče"]
["0682","Rezidenti 2015 - nelékařské obory"]
["0683","Rezidenti 2016 - ošetřovatelská a intenzivní péče"]
["0684","NCHIR: rezidenti 2019 - nelékařské obory"]
["0685","Rezidenti 2018"]
["0687","NCHIR: rezidenti 2013 - ošetřovatelská péče"]
["0688","Rezidenti 2017 - nelékařské obory"]
["0689","Rezidenti 2014 - nelékařské obory"]
["0701","Vedení klinického pracoviště"]
["0705","IOP - Mod.obn.přístr.vyb.traumatologického c."]
["0706","IOP - Mod.tech.vyb.v oblasti prevence nozokomiál.infek."]
["0709","IOP - Mod.obn.přístr.vyb.cerebrovaskulárního centra FNOL"]
["0715","Lůžkové oddělení ECMO"]
["0721","Ambulance"]
["0731","JIP"]
["0732","NIOP"]
["0733","DIOP"]
["0762","Operační sál - lok. prac. anesteziologů"]
["0764","Pracoviště COS"]
["0765","Dospávací hala KAR"]
["0766","Pracoviště DK COS"]
["0775","IOP - Mod.obn.přístr.vyb.traumatologického cen. II"]
["0776","IROP - Návazná péče"]
["0782","Rezidenti 2015 - nelékařské obory"]
["0783","Rezidenti 2016 - ošetřovatelská a intenzivní péče"]
["0785","Rezidenti 2018"]
["0787","KARIM: rezidenti 2013 - ošetřovatelská péče"]
["0788","Rezidenti 2017 - nelékařské obory"]
["0789","Rezidenti 2014 - nelékařské obory"]
["0794","Centrum - KAR"]
["0801","Vedení klinického pracoviště"]
["0802","ZT pro Perinatologické centrum - IISSP"]
["0806","IOP - Mod.tech.vyb.v oblasti prevence nozokomiál.infek."]
["0811","Lůžkové oddělení 19B (šestinedělí)"]
["0817","Lůžkové oddělení 17 (operativní gyn.)"]
["0818","Intermediální jednotka (17A)"]
["0821","Ambulance"]
["0822","Ambulance - fetální medicína"]
["0823","Centrum asistované reprodukce"]
["0831","JIP"]
["0832","JIP 19 (porodní sál)"]
["0841","Laboratoř cytologická"]
["0862","Porodní sál - lokální"]
["0863","Operační sál OP 17 (z 08 62)"]
["0864","Pracoviště COS"]
["0873","IROP - Mod.obn.přístr.vyb.perinatologického centra"]
["0874","IROP - Mod.obn.přístr.vyb.onkogynekologického centra"]
["0884","PORGYN: rezidenti 2019 - nelékařské obory"]
["0885","Rezidenti 2018"]
["0886","Rezidenti 2018"]
["0901","Vedení klinického pracoviště"]
["0902","ZT pro Perinatologické centrum - IISSP"]
["0903","Norský fond - projekt 2009"]
["0904","Norský fond - projekt 2015"]
["0911","Lůžkové oddělení 16C + 16B +16BD"]
["0912",""]
["0921","Ambulance"]
["0931","JIP 16A +16D"]
["0932","JIP"]
["0973","IROP - Mod.obn.přístr.vyb.perinatologického centra"]
["0982","Rezidenti 2015 - nelékařské obory"]
["0984","NOVO: Rezidenti 2019 - nelékařské obory"]
["0988","Rezidenti 2017 - nelékařské obory"]
["0994","Centrum - novorozenecké"]
["1001","Vedení klinického pracoviště"]
["1004","IOP - Mod.obn.přístr.vyb.c.k.onkologické p.  "]
["1006","IOP - Mod.tech.vyb.v oblasti prevence nozokomiál.infek."]
["1008","IOP - Mod.a obnova přístroj.vyb.komplex.rehab.péče"]
["1011","Lůžkové oddělení 28B"]
["1012","Lůžkové oddělení 28C vč.dospávací haly"]
["1013","Lůžkové oddělení 21A"]
["1014","Lůžkové oddělení 21B"]
["1015","Lůžkové oddělení 28D"]
["1021","Ambulance"]
["1022","LPS dětská"]
["1023","Praktický lékař pro děti a dorost"]
["1026",""]
["1031","JIP 21B"]
["1032","JIP"]
["1033","JIP 21C (pro větší děti)"]
["1041","LEM"]
["1042","LEM"]
["1066","Pracoviště DK COS"]
["1071","Endoskopie"]
["1076","IROP - Návazná péče"]
["1083","Rezidenti 2016 - ošetřovatelská a intenzivní péče"]
["1084","DK: rezidenti 2010 projekt č. 1 (lékaři)"]
["1086","DK: Rezidenti 2019 - lékaři"]
["1087","DK: rezidenti 2020 - lékaři"]
["1089","Rezidenti 2014 - nelékařské obory"]
["1094","Centrum - DK"]
["1096","OPVaVI - NPU I (projekt ÚMTM)"]
["1097","OPVaVI - projekt ÚMTM (pouze os.nákl.)"]
["1101","Vedení klinického pracoviště"]
["1102","ZT pro ORT - IISSP"]
["1105","IOP - Mod.obn.přístr.vyb.traumatologického c."]
["1106","IOP - Mod.tech.vyb.v oblasti prevence nozokomiál.infek."]
["1108","IOP - Mod.a obnova přístroj.vyb.komplex.rehab.péče"]
["1111","Lůžkové oddělení 29A"]
["1112","Lůžkové oddělení 29B"]
["1113","Lůžkové oddělení 29C (6 lůžek KÚČOCH)"]
["1121","Ambulance"]
["1131","JIP 29A"]
["1151","Diagnostika poruch pohyb. funkcí - výzkum"]
["1162","Operační sál - lokální"]
["1166","Pracoviště DK COS"]
["1176","IROP - Návazná péče"]
["1183","Rezidenti 2016 - ošetřovatelská a intenzivní péče"]
["1184","ORT: rezidenti 2019 - nelékařské obory"]
["1185","Rezidenti 2018"]
["1188","Rezidenti 2017 - nelékařské obory"]
["1189","Rezidenti 2014 - nelékařské obory"]
["1201","Vedení klinického pracoviště"]
["1202","ISPROFIN -obměna pořístroje Lithotryptor"]
["1211","Lůžkové oddělení "]
["1221","Ambulance "]
["1262","Operační sál - lokální"]
["1264","Pracoviště COS"]
["1266","Pracoviště DK COS"]
["1276","UROL: IROP - Návazná péče"]
["1301","Vedení klinického pracoviště"]
["1306","IOP - Mod.tech.vyb.v oblasti prevence nozokomiál.infek."]
["1311","Lůžkové oddělení 14"]
["1321","Ambulance"]
["1331","JIP"]
["1362","Operační sál - lokální"]
["1364","Pracoviště COS"]
["1366","Pracoviště DK COS"]
["1384","ORL: rezidenti 2019 - nelékařské obory"]
["1385","ORL: rezidenti 2018 - nelékařské obory"]
["1388","Rezidenti 2017 - nelékařské obory"]
["1389","Rezidenti 2014 - nelékařské obory"]
["1401","Vedení klinického pracoviště"]
["1404","Norský fond - projekt 2015"]
["1406","IOP - Mod.tech.vyb.v oblasti prevence nozokomiál.infek."]
["1411","Lůžka"]
["1412","Lůžka 13"]
["1421","Ambulance"]
["1462","Operační sál - lokální"]
["1466","Pracoviště DK COS"]
["1484","OCNI: rezidenti 2019 - nelékařské obory"]
["1494","Centrum - oční"]
["1501","Vedení klinického pracoviště"]
["1521","Ambulance"]
["1584","Rezidenti 2010 projekt č. 1 (lékaři)"]
["1594","Centrum - alergologie"]
["1601","Vedení klinického pracoviště"]
["1604","IOP - Mod.obn.přístr.vyb.centra komplexní onkologické péče "]
["1605","IOP - Mod.obn.přístr.vyb.traumatologického c."]
["1606","IOP - Mod.tech.vyb.v oblasti prevence nozokomiál.infek."]
["1611","Lůžkové oddělení 26"]
["1612","Lůžkové oddělení 25"]
["1613","Lůžkové oddělení 24"]
["1621","Ambulance"]
["1622","Ambulance - transplantace"]
["1631","JIP 24A"]
["1641","Bronchologie"]
["1666","Pracoviště DK COS"]
["1676","IROP - Návazná péče"]
["1684","PLIC: rezidenti 2010 projekt č. 1 (lékaři)"]
["1685","Rezidenti 2018"]
["1686","PLIC: rezidenti 2019 - lékaři"]
["1687","PLIC: rezidenti 2020 - lékaři"]
["1694","Centrum - TRN"]
["1697","OPVaVI - projekt ÚMTM (pouze os.nákl.)"]
["1701","Vedení klinického pracoviště"]
["1702","ReMuS - nadace Impuls"]
["1703","Vzdělávací síť iktových center"]
["1704","OP VVV - Molekulární, buněčný a klinický přístup ke zdravému stárnutí"]
["1706","IOP - Mod.tech.vyb.v oblasti prevence nozokomiál.infek."]
["1709","IOP - Mod.obn.přístr.vyb.cerebrovaskulárního centra FNOL"]
["1711","Lůžkové oddělení 31A  "]
["1712","Lůžkové oddělení 31B"]
["1713","Lůžkové oddělení 35"]
["1721","Ambulance"]
["1731","JIP A  (5 lůžek resuscitační péče)"]
["1732","JIP B"]
["1752",""]
["1753",""]
["1791","Stacionář"]
["1794","Centrum - neurologie"]
["1801","Vedení klinického pracoviště"]
["1806","IOP - Mod.tech.vyb.v oblasti prevence nozokomiál.infek."]
["1811","Lůžkové oddělení 32A"]
["1812","Lůžkové oddělení 32C + krizové centrum"]
["1813","Lůžkové oddělení 32B"]
["1814","Ergoterapie a fyzioterapie"]
["1821","Ambulance"]
["1822","Ambulantní klinická psychologie"]
["1823","Ambulance AT centrum"]
["1824",""]
["1886","Rezidenti 2018"]
["1887","PSY: rezidenti 2020 - lékaři"]
["1891","Stacionář"]
["1901","Vedení klinického pracoviště"]
["1911","Lůžkové oddělení 43"]
["1921","Ambulance"]
["1922","Ambulance - péče o zaměstnance FNO"]
["1923","Ambulance - Centrum očkování"]
["1924","PRAC: ambulance - COVID-19 vakcinační centrum"]
["1925","PRAC: ambulance - COVID-19 mobilní očkovací teamy"]
["2001","Vedení klinického pracoviště"]
["2011","Lůžkové oddělení 10"]
["2021","Ambulance + operační sál lokální"]
["2022","Ambulance -  samoplátci"]
["2062",""]
["2094","Centrum - kožní "]
["2101","Vedení klinického pracoviště"]
["2102","OP - Informační síť onkologických center"]
["2103","Národní onkologický registr - NOR"]
["2104","IOP - Mod.obn.přístr.vyb.centra komplexní onkologické péče "]
["2106","IOP - Mod.tech.vyb.v oblasti prevence nozokomiál.infek."]
["2108","IOP - Mod.obn.přístr.vyb.c.k.onkologické p. II"]
["2111","Lůžkové oddělení 42A"]
["2112","Lůžkové oddělení 42B"]
["2113","Lůžkové oddělení"]
["2121","Ambulance + mamol. poradna"]
["2129","Ambulance"]
["2151","Ozařovny-přístrojové pracoviště"]
["2152","Radiační onkologie - brachyterapie"]
["2176","IROP - Návazná péče"]
["2194","Centrum  - onkologie"]
["2197","OPVaVI - projekt ÚMTM (pouze os.nákl.)"]
["2201","Vedení klinického pracoviště"]
["2208","IOP - Mod.obn.přístr.vyb.c.k.onkologické p. II"]
["2211","Lůžkové oddělení 40"]
["2221","Ambulance"]
["2241","Laboratoř-SVLS"]
["2251","Přístr.pracoviště - PET "]
["2277","IOP - Mod.obn.přístr.vyb.c.k.onkologické p. III"]
["2282","KNM: Rezidenti 2009 projekt č. 1(lékaři)"]
["2294","Centrum - KNM"]
["2401","Vedení klinického pracoviště"]
["2406","IOP - Mod.tech.vyb.v oblasti prevence nozokomiál.infek."]
["2421","Ambulance "]
["2422","Ambulance "]
["2423","Ambulance "]
["2424","Ambulance "]
["2425","Ambulance "]
["2426","Ambulance "]
["2501","Vedení klinického pracoviště"]
["2505","IOP - Mod.obn.přístr.vyb.traumatologického c."]
["2506","IOP - Mod.tech.vyb.v oblasti prevence nozokomiál.infek."]
["2511","Lůžkové oddělení 33"]
["2521","Ambulance"]
["2522","LPS stomatologická"]
["2523","LPS stomatologická - denní"]
["2525",""]
["2526",""]
["2562","Operační sál "]
["2563","Operační sál "]
["2565","Operační sál "]
["2576","IROP - Návazná péče"]
["2601","Vedení klinického pracoviště"]
["2608","IOP Mod.a obnova přístroj.vyb.komplex.rehab.péče"]
["2609","IOP - Mod.obn.přístr.vyb.cerebrovaskulárního centra FNOL"]
["2611","Lůžkové oddělení 44 a 45 "]
["2621",""]
["2622","RHC ambulance + kineziologie,kinezioterapie"]
["2651",""]
["2652",""]
["2701","Vedení klinického pracoviště"]
["2708","IOP Mod.a obnova přístroj.vyb.komplex.rehab.péče"]
["2721","TVL ambulance"]
["2723","Ambulance - akupunktura"]
["2724","Ambulance - prevence"]
["2801","Vedení klinického pracoviště"]
["2821","Ambulance"]
["2841","Laboratoř"]
["2901","Vedení klinického pracoviště"]
["2911","Lůžkové oddělení"]
["2921","Ambulance"]
["2962","Operační sál lokální"]
["2964","Pracoviště COS"]
["2966","Pracoviště DK COS"]
["2994","Centrum -  PCHIR"]
["3001","Vedení klinického pracoviště geriatrie"]
["3011","Lůžkové oddělení 46 "]
["3012","Lůžkové oddělení 48 (LDN)"]
["3021","Ambulance"]
["3022","Ambulance"]
["3081",""]
["3101","Vedení klinického pracoviště"]
["3108","IOP Mod.a obnova přístroj.vyb.komplex.rehab.péče"]
["3111","Lůžkové oddělení 27"]
["3112","Lůžkové oddělení"]
["3121","Ambulance"]
["3131","JIP 27"]
["3164","Pracoviště COS"]
["3166","Pracoviště DK COS"]
["3176","IROP - Návazná péče"]
["3201","Vedení klinického pracoviště"]
["3203","HOK: OPŽP - Novostavba pavilonu HOK"]
["3204","IOP - Mod.obn.přístr.vyb.centra komplexní onkologické péče "]
["3208","IOP - Mod.obn.přístr.vyb.c.k.onkologické p. II"]
["3211","Lůžkové oddělení 5A"]
["3221","Ambulance"]
["3231","JIP 5B"]
["3232","JIP 5C"]
["3241","Laboratoř - SVLS"]
["3242","Tkáňová banka"]
["3243","Laboratoř krevních obrazů a cytomorfologie"]
["3244","Laboratoř koagulační"]
["3245","Laboratoř cytogenetiky a molekulární cytogenetiky"]
["3246","Laboratoř průtokové cytometrie"]
["3247","Laboratoř molekulární biologie"]
["3248","Laboratoř tkáňových kultur"]
["3249","Array CGH"]
["3276","IROP - Návazná péče"]
["3282","Rezidenti 2015 - nelékařské obory"]
["3283","Rezidenti 2016 - ošetřovatelská a intenzivní péče"]
["3284","HOK: rezidenti 2019 - nelékařské obory"]
["3285","Rezidenti 2018"]
["3287","HOK: rezidenti 2013 - ošetřovatelská péče"]
["3289","Rezidenti 2014 - nelékařské obory"]
["3294","Centrum -  HOK"]
["3301","Vedení klinického pracoviště"]
["3302","E-learningová podpora - Biolink"]
["3303","E-learningová podpora prakt. výuky biochem.a imunogen"]
["3321","Metabolická ambulance"]
["3322","Úsek centrálních odběrů"]
["3341","Centrální laboratoř"]
["3342","Laboratoř DMP"]
["3343","Centrální laboratorní příjem"]
["3344",""]
["3345","OKB: Laboratoř kardioimunogenetiky"]
["3386","OKB: rezidenti 2011 projekt č.2 (oš.péče)"]
["3396","OPVaVI - NPU I (projekt ÚMTM)"]
["3397","OPVaVI - projekt ÚMTM (pouze os.nákl.)"]
["3401","Vedení klinického pracoviště"]
["3405","IOP - Mod.obn.přístr.vyb.traumatologického c."]
["3407","IOP- Mod.obn.přistr.vyb.komplex.kardiovas.centra"]
["3408","IOP - Mod.obn.přístr.vyb.c.k.onkologické p. II"]
["3409","IOP - Mod.obn.přístr.vyb.cerebrovaskulárního centra FNOL"]
["3451","Přístr. pracoviště -SVLS + magnet. rezonance"]
["3452","Přístr. pracoviště -detašová pracoviště+screen.m."]
["3464","Pracoviště COS"]
["3471","Intervenční radiol. + katetrizační sál os.nákl."]
["3473","RTG: IROP - Mod.obn.vyb.přístr.perinatologi"]
["3475","IOP - Mod.obn.přístr.vyb.traumatologického cen. II"]
["3476","IROP - Návazná péče"]
["3477","IOP - Mod.obn.přístr.vyb.c.k.onkologické p. III"]
["3484","RTG: rezidenti 2019 - nelékařské obory"]
["3485","Rezidenti 2018"]
["3501","Vedení klinického pracoviště"]
["3503","TO - krizová připravenost"]
["3521","Ambulance - hematologická poradna"]
["3522","Odběrné místo Jesenícká nemocnice"]
["3541","Laboratoř - SVLS"]
["3544","Pochůzková služba"]
["3581",""]
["3587",""]
["3590","Výroba"]
["3621","Ambulance"]
["3704","IOP - Mod.obn.přístr.vyb.centra komplexní onkologické péče "]
["3741","Laboratoř"]
["3742","Laboratoř - referenční diagnostika"]
["3743","Laboratoř"]
["3788","PATOL: rezidenti 2012 projekt č. 1 (lékaři)"]
["3797","OPVaVI - projekt ÚMTM (pouze os.nákl.)"]
["3841","Soudní lékařství - laboratoř"]
["3921","Ambulance - odborná poradna"]
["4041","Mikrobiologie - laboratoř"]
["4081",""]
["4097","OPVaVI - projekt ÚMTM (pouze os.nákl.)"]
["4141","Imunologie - laboratoř"]
["4142",""]
["4143","Imunologie"]
["4181",""]
["4197","OPVaVI - projekt ÚMTM (pouze os.nákl.)"]
["4321","Ambulance - konzilia"]
["4397","OPVaVI - projekt ÚMTM (pouze os.nákl.)"]
["4398","Klinická farmakologie"]
["4441","LEM - laboratoř experimentální medicíny"]
["4442","LEM - referenční diagnostika"]
["4443","LEM - laboratoř kardiogenomiky "]
["4496","OPVaVI - NPU I (projekt ÚMTM)"]
["4581",""]
["4598","Sociální oddělení"]
["4602","RPZP - Umění komunikace-podpora dárcovství orgánů"]
["4692","Transplantační centrum + koordinační"]
["4704","IOP - Mod.obn.přístr.vyb.centra komplexní onkologické péče "]
["4705","IOP - Mod.obn.přístr.vyb.traumatologického c."]
["4764","Centrální operační sály "]
["4766","Operační sály dětské chirurgie"]
["4776","IROP - Návazná péče"]
["4782","Rezidenti 2015 - nelékařské obory"]
["4787","COSS: rezidenti 2013 - ošetřovatelská péče"]
["4789","Rezidenti 2014 - nelékařské obory"]
["4801","Lékárna - vedení klinického pracoviště"]
["4802","Lékárna - výdejna Z (hlavní lékárna)"]
["4803","OP - specializační vzdělávání klinických farmaceutů"]
["4804","Lékárna - výdejna A (monoblok)"]
["4805","Lékárna - PZT-FONI"]
["4806","Lékárna - výdej HVLP"]
["4807","Lékárna - klinický farmaceut"]
["4808","LEK: lékárna - výdejna ZP - Puškinova ul."]
["4809","LEK: výdejna léků - Puškinova ul."]
["4822","Lékárenská pohotovost"]
["4841","Lékárna - oddělení ředění cytostatik"]
["4842","Lékárna - oddělení přípravy sterilních léčiv"]
["4843","Lékárna - oddělení přípravy léčiv"]
["4844","Lékárna - oddělení diagnostik"]
["5001","Vedení klinického pracoviště"]
["5007","IOP- Mod.obn.přistr.vyb.komplex.kardiovas.centra"]
["5011","Lůžkové oddělení 50"]
["5015","Lůžkové oddělení ECMO"]
["5021","Ambulance"]
["5031","JIP 50B"]
["5032","JIP"]
["5062","Operační sál - lokální"]
["5071","PICC tým"]
["5076","IROP - Návazná péče"]
["5082","Rezidenti 2015 - nelékařské obory"]
["5083","Rezidenti 2016 - ošetřovatelská a intenzivní péče"]
["5085","Rezidenti 2018"]
["5087","KCHIR: rezidenti 2013 - ošetřovatelská péče"]
["5089","Rezidenti 2014 - nelékařské obory"]
["5102","NTMC - Národní telemedicínské centrum - provoz"]
["5103","NTMC - Transfer technologií"]
["5104","NTMC - SCIROCCO"]
["5105","NTMC - TWINNING"]
["5106","NTMC: SHAPES"]
["5107","NTMC: PROFID"]
["5108","NTMC: Projekt niCE-life"]
["5110","NTMC: Projekt X"]
["5398","Odd. lékařské fyziky a rad. ochrany"]
["5498","Oddělení nemocniční hygieny"]
["5602","IOP - komplex.technol.vyb.v obl. sterilizace prádla"]
["5606","IOP - Mod.tech.vyb.v oblasti prevence nozokomiál.infek."]
["5674","IROP - Mod.obn.vyb.přístr.onkogynekol.cen."]
["5676","IROP - Návazná péče"]
["5681",""]
["5684",""]
["5693","Oddělení centrální sterilizace"]
["5695","OCS - detašované pracoviště Ortopedie"]
["5696","OCS - detašované pracoviště  DK"]
["5721","Nutriční ambulance"]
["5921",""]
["5931","JIP 51"]
["5976","IROP - Návazná péče"]
["5982","Rezidenti 2015 - nelékařské obory"]
["6001","Vedení klinického pracoviště"]
["6002","OP LZZ vzdělávání lékařů"]
["6005","IOP - Mod.obn.přístr.vyb.traumatologického c."]
["6022","Ambulance"]
["6023","Triážová ambulance - COVID-19"]
["6024","Ambulance"]
["6025","LPS dospělá"]
["6026","Akutní traumatologická ambulance"]
["6027","Odběrový stan - COVID-19"]
["6028","Traumatologický plán FNOL"]
["6029","Emergency"]
["6083","Rezidenti 2016 - ošetřovatelská a intenzivní péče"]
["6087","URGENT: rezidenti 2020 - lékaři"]
["6088","Rezidenti 2017 - nelékařské obory"]
["6206","Centrum klinického výzkumu"]
["8101","Klinická hodnocení - I. Interní klinika"]
["8102","Klinická hodnocení - II. Interní klinika"]
["8103","Klinická hodnocení - III. Interní klinika"]
["8104","Klinická hodnocení - I. Chirurgická klinika"]
["8105","Klinická hodnocení - II. Chirurgická klinika"]
["8106","Klinická hodnocení - Neurochirurgická klinika"]
["8107","Klinická hodnocení - Klinika anesteziologie a resuscitace"]
["8108","Klinická hodnocení - Porodnicko-gynekologická klinika"]
["8109","Klinická hodnocení - Novorozenecké oddělení"]
["8110","Klinická hodnocení - Dětská klinika"]
["8111","Klinická hodnocení - Ortopedická klinika"]
["8112","Klinická hodnocení - Urologická klinika"]
["8113","Klinická hodnocení - Otolaryngologická klinika"]
["8114","Klinická hodnocení - Oční klinika"]
["8115","Klinická hodnocení - Oddělení alergologie a kl.imun."]
["8116","Klinická hodnocení - Klinika plicních nemocí a tuberkulózy"]
["8117","Klinická hodnocení - Neurologická klinika"]
["8118","Klinická hodnocení - Klinika psychiatrie"]
["8119","Klinická hodnocení - Klinika pracovního lékařství"]
["8120","Klinická hodnocení - Klinika chorob kožních a pohlavních"]
["8121","Klinická hodnocení - Onkologická klinika"]
["8122","Klinická hodnocení - Klinika nukleární medicíny"]
["8124","Klinická hodnocení - Klinika zubního lékařství"]
["8125","Klinická hodnocení - Klinika ústní, čelistní a obl. chir."]
["8126","Klinická hodnocení - Oddělení rehabilitace"]
["8127","Klinická hodnocení - Klinika TVL a kardiovask rehabilitace"]
["8128","Klinická hodnocení - Ústav lékařské genetiky a fet. med."]
["8129","Klinická hodnocení - Oddělení plastické a estet. chirurgie"]
["8130","Klinická hodnocení - Oddělení geriatrie"]
["8131","Klinická hodnocení - Traumatologické oddělení"]
["8132","Klinická hodnocení - Hemato-onkologická klinika"]
["8133","Klinická hodnocení - Oddělení klinické biochemie"]
["8134","Klinická hodnocení - Radiologická klinika"]
["8135","Klinická hodnocení - Transfuzní oddělení"]
["8136","Klinická hodnocení - Oddělení klinické logopedie"]
["8137","Klinická hodnocení - Ústav klinické a molekulární patologie"]
["8138","Klinická hodnocení - Ústav soud. lékařství a medicin.práva "]
["8139","Klinická hodnocení - Oddělení klinické psychologie"]
["8140","Klinická hodnocení - Ústav mikrobiologie"]
["8141","Klinická hodnocení - Ústav imunologie"]
["8143","Klinická hodnocení - Ústav farmakologie"]
["8144","Klinická hodnocení: Laboratoř experimentální medic"]
["8145","Klinická hodnocení - Sociální oddělení"]
["8146","Klinická hodnocení - Transplantační centrum"]
["8147","Klinická hodnocení - Centrální operační sály"]
["8148","Klinická hodnocení - Lékárna"]
["8150","Klinická hodnocení - Kardiochirurgická klinika"]
["8153","Klinická hodnocení - Oddělení lék. fyziky a rad. ochrany"]
["8156","Klinická hodnocení - Oddělení centrální sterilizace "]
["8159","Klinická hodnocení - Oddělení int. péče chirurg. oborů"]
["8160","Klinická hodnocení - Oddělení urgentního příjmu"]
["8501","Prof. MUDr. Petr Kaňovský, CSc. - NEUROL"]
["8502","Doc.MUDr. Mgr. Milan Raška, Ph.D. - IMUNOL"]
["8503","Prof. MUDr. Miloš Táborský, CSc., FESC, MBA - I.IK"]
["8504","Prof. MUDr. Miloš Táborský, CSc., - I.IK - TAČR"]
["8505","MUDr. Martin Nevrlý, Ph.D. - NEUROL"]
["8506","MUDr. Petr Džubák, Ph.D. - DK/GEN"]
["8507","Prof. MUDr. Vítězslav Kolek, DrSc. - PLIC"]
["8508","Prof. MUDr. Miloš Táborský, CSc., FESC, MBA - I.IK"]
["8509","Doc. MUDr. Daniel Šaňák, PhD. - NEUROL"]
["8510","Doc. MUDr. Petr Hamal, PhD. - MIKRO"]
["8511","Prof. MUDr. Radovan Pilka, PhD. - PORGYN"]
["8512","Grant: MUDr. Martin Loveček, PhD. - I. CHIR"]
["8513","Grant: MUDr. Martin Šín, PhD., FEBO - OČNÍ"]
["8514","Grant: Doc. MUDr. Miroslav Vaverka, CSc. - NEUROCH"]
["8515","Grant: Doc. Dr. Ing. Eva Kriegová - IMUNO"]
["8516","Grant: Prof. RNDr. Tomáš Adam, PhD. - OKB"]
["8517","Grant: Ing. David Kula, PhD., MBA - I.IK"]
["8518","Grant: MUDr. Jan Hálek, Ph.D."]
["8519","Grant: Ing. Antonín Hlavinka"]
["8531","MUDr. Tomáš Szotkowski, Ph.D. - HOK"]
["8532","Prof.MUDr. Zdeněk Kolář, CSc. - PATOL"]
["8533","MUDr. Milan Král, Ph.D. - UROL"]
["8534","Doc. MUDr. František Mrázek, Ph.D. - IMUNOL"]
["8535","MUDr. Vladimír Balík, Ph.D. - NEUROCHIR"]
["8536","Doc. RNDr. Radek Vrtěl, Ph.D. - GENETIKA"]
["8537","MUDr. Michela Kaiserová - NEUROL"]
["8538","MUDr. David Vrána, Ph.D. - ONKO"]
["8539","MUDr. Tomáš Pika, Ph.D. - HOK"]
["8540","Dr. Ing. Eva Kriegová - IMUNO"]
["8541","MUDr. Richard Salzman, Ph.D. - ORL"]
["8542","Prof. MUDr. Jiří Ehrmann, Ph.D. - PATOL"]
["8543","Prof. MUDr. Bohuslav Melichar, Ph.D. - ONKO"]
["8544","MUDr. Jana Volejníková, Ph.D. - DK"]
["8545","MUDr. Hana Študentová, Ph.D. - ONKO"]
["8546","Dr. Ing. Eva Kriegová - IMUNO"]
["8547","Doc. MUDr. Vít Procházka, Ph.D. - HOK"]
["8548","MUDr. Pavel Skalický, Ph.D. - I.CHIR"]
["8549","Prof. MUDr. Miloš Táborský, CsC. - I.IK - TAČR"]
["8550","MUDr. Hana Študentová, Ph.D. - ONKO - GAČR"]
["8551","Doc. MUDr. Vladimír Študent, PhD. - UROL"]
["8552","Doc. MUDr. Jiří Minařík, PhD. - HOK"]
["8553","MUDr. Hana Študentová, Ph.D. - ONKO"]
["8554","MUDr. Pavel Skalický, PhD. - I.CHIR"]
["8555","Doc. RNDr. Radek Vrtěl, PhD. - GENETIKA"]
["8556","MUDr. Tomáš Veverka, PhD. - NEUROL"]
["8557","MUDr. Petr Šantavý, PhD. - KARDIOCHIR"]
["8558","MUDr. Filip Čtvrtlík, PhD. - RTG"]
["8559","MUDr. JUDr. Dušan Klos, Ph.D. - I.CHIR"]
["8560","Mgr. Lenka Kocourková - LEM"]
["8561","MUDr. Ondřej Krystyník - III. IK"]
["8562","Mgr. Taťána Štosová, Ph.D. - MIKRO"]
["8563","Doc. MUDr. Jan Minařík, Ph.D. - HOK"]
["8564","MUDr. Jan Přeček, Ph.D. - I.IK"]
["8565","Prof. MUDr. Ing. Petr Hluštík, Ph.D. - NEUROL"]
["8566","MUDr. Michaela Kaiserová - NEUROL"]
["8567","MUDr. Jana Petřková, Ph.D. - I.IK"]
["8568","Prof. MUDr. Dagmar Pospíšilová, Ph.D. - DK"]
["8569","MUDr. Přemysl Falt, Ph.D. - II.IK"]
["8570","Prof. MUDr. Bohuslav Melichar, Ph.D. - ONKO"]
["8571","MUDr. Tomáš Skála, Ph.D., FESC - I.IK"]
["8572","Grant: Doc. MUDr. Petr Šantavý, Ph.D. - KARDIOCHIR"]
["8573","Grant: MUDr. Jan Přeček, PhD. - I.IK"]
["8574","Grant: Doc. MUDr. Kateřina Menšíková, PhD. - NEURO"]
["8575","Grant: Doc. MUDr. Miroslav Vaverka, CSc. - NEUROCH"]
["8576","Grant: MUDr. Vladislav Raclavský, PhD. - MIKRO"]
["8577","Grant: Prof. MUDr. Bohuslav Melichar, Ph.D. - ONKO"]
["8578","Grant: Prof. MUDr. Mgr. Milan Raška, PhD. - IMUNO"]
["8579","Grant: Prof. MUDr. Dagmar Pospíšilová, PhD. - DK"]
["8580","Grant: Doc. MUDr. Martin Doležel, PhD. - ONKOL"]
["8581","Grant: Doc. MUDr. Ondřej Urban, PhD. - II. IK"]
["8582","Grant: MUDr. Tomáš Skála, PhD. FESC - I. IK"]
["8599","Granty - pomocné středisko"]
["8617","MUDr. Michal Král - NEUROL"]
["8618",""]
["8619","Grant: Doc. MUDr. Jiří Gallo, Ph.D. - ORTOP"]
["8620","Doc.MUDr.Marek Ĺubušký, Ph.D. - PORGYN"]
["8621","Prof.MUDr. Petr Kaňovský, CSc. - NEUROL"]
["8622","Grant: Doc.MUDr. Edgar Faber, CSc. - HOK"]
["8623",""]
["8625","Doc. MUDr. Milan Adamus, Ph.D. - KARIM"]
["8626","Doc. MUDr. Jiří Gallo, Ph.D. - ORTOP"]
["8627","Prof. MUDr. Vladimír Mihál, CSc. - DK"]
["8628","Doc. MUDr. Čestmír Neoral, CSc. - I.CHIR"]
["8629","Doc. MUDr. Daniel Šaňák, Ph.D. - NEUROL"]
["8631","Doc. MUDr. Petr Utíkal, Ph.D. - 2.CHIR"]
["8632","MUDr. Petr Jakubec - PLICNÍ"]
["8633","Mgr. T. Štosová, Ph.D./MUDr. M.Sedláková, Phd.D. - MIKRO"]
["8634","MUDr. Zuzana Heřmanová - IMUNOL"]
["8635","Mgr. Luděk Slavík, Ph.D. - HOK"]
["8636","Mgr. T. Štosová, Ph.D./MUDr. M.Sedláková, Phd.D. - MIKRO"]
["8637","MUDr. Tomáš Pika, Ph.D. - 3.IK"]
["8638","MUDr. Vít Procházka - HOK"]
["8639","Prof. MUDr. Jiří Klein, Ph.D. - ONKOL"]
["8640","MUDr. Pavel Otruba, MBA - NEUROL"]
["8641","Doc. MUDr. Marie Nakládalová, Ph.D. - PRAC"]
["8642","MUDr. Tomáš Wanek - NEUROCHIR "]
["8643","Doc.MUDr.Milan Adamus, Ph.D. - KARIM"]
["8644","Doc. MUDr. Martin Procházka, Ph.D. - PORGYN"]
["8645","Prof. MUDr. Vítězslav Kolek, DrSc. - PLIC"]
["8646","Doc. MUDr. Dagmar Pospíšilová, Ph.D. - DK"]
["8647","Doc. MUDr. Igor Čižmář, Ph.D. - TRAUMA"]
["8648","Doc. Mgr. Jiří Drábek, Ph.D.  - TAČR"]
["8649","Prof. MUDr. Jiří Gallo, Ph.D. - ORTOP"]
["8665","Grant: prof. MUDr. Zdeněk Kolář, CSc. - PATOL"]
["8667","MUDr. Luděk Raida, Ph.D. - HOK"]
["8671","Grant: Doc. MUDr. Petr Utíkal, Ph.D. - 2 CHIR"]
["8672","Grant: MUDr. Ondřej Kalita, Ph.D. - NCHIR"]
["8673","Grant: Doc. MUDr. Ivana Oborná, Ph.D. - PORGYN"]
["8676","Prof. MUDr. Vítězslav Kolek, DrSc. - PLIC"]
["8680","Doc.MUDr. Tomáš Papajík, CSc. - HOK"]
["8681","Prof.MUDr. Martin Petřek, CSc. - OKB"]
["8682","Prof.MUDr. Martin Petřek, CSc. - OKB"]
["8683","Prof.MUDr. Vítězslav Kolek, DrSc. - PLIC"]
["8684","Prof.MUDr. Josef Zadražil, CSc - 3.IK"]
["8685","MUDr. Karel Cwiertka, Ph.D. - ONKOL"]
["8686","Doc.MUDr. Radovan Pilka, Ph. D. - PORGYN"]
["8687","MUDr. Ivona Grygárková - PLIC"]
["8688","Prof. MUDr. Jiří Ehrmann, Ph. D. - PATOL"]
["8689","Prof.MUDr. Petr Hluštík, Ph.D. - NEUROL"]
["8690","Doc.MUDr. Tomáš Papajík, CSc. - HOK"]
["8691","MUDr. Ondřej Kalita, Ph.D. - NCHIR"]
["8692","Grant: MUDr. Jan Gregar - 2.IK"]
["8693","Prof.MUDr. Karel Indrák, DrSc. - HOK"]
["8694","Doc.MUDr.Petr Utíkal, Ph.D. - 2. CHIR"]
["8695","Grant: Doc. MUDr. Peter Ondra, CSc. - SOUDNÍ"]
["8696","MUDr. Jan Gregar - 2. IK"]
["8697","Prof.MUDr. Pavel Horák, CSc. - 3.IK"]
["8698","MUDr. Dušan Klos, Ph. D. - I.CHIR"]
["8699","Granty - pomocné středisko"]
["8705","RIV: MUDr. Kateřina Čerňanová"]
["8709","RIV: MUDr. Aleš Grambal, PhD."]
["8710","RIV: MUDr. Štefan Trnka"]
["8711","RIV: doc. Mgr. Jan Bouchal, PhD."]
["8712","RIV: prof. MUDr. Jiří Gallo, PhD."]
["8713","RIV: MUDr. Matěj Halaj"]
["8715","RIV: MUDr. Karel Huml"]
["8716","RIV: MUDr. Beáta Hutyrová, PhD."]
["8719","RIV: MUDr. Hana Klosová, PhD."]
["8720","RIV: MUDr. Petr Kolář, PhD."]
["8721","RIV: MUDr. Andrea Smržová"]
["8724","RIV: MUDr. Vladimír Študent, PhD."]
["8725","RIV: MUDr. Helena Urbánková"]
["8726","RIV: Mgr. Petr Vrtěl"]
["8729","RIV: prof. MUDr. Vít Procházka, PhD."]
["8730","RIV: MUDr. Špička, PhD."]
["8735","RIV: MUDr. Petra Hübnerová"]
["8736","RIV: MUDr. Josef Chudáček"]
["8737","RIV: MUDr. Jana Janečková, PhD."]
["8738","RIV: MUDr. Jan Schovánek, PhD."]
["8739","RIV: doc. MUDr. Martin Šimek, PhD."]
["8752","RIV: 2016 - Doc. MUDr. Daniel Šaňák, Ph.D."]
["8753","RIV: MUDr. Richard Salzmann, Ph.D."]
["8754","RIV: 2016 - Doc. MUDr. David Karásek, Ph.D."]
["8755","RIV - MUDr. Roman Hájek, Ph. D. "]
["8757","RIV: 2016 - MUDr. JUDr. Dušan Klos, Ph.D."]
["8758","RIV: 2016 - MUDr. Tomáš Pika, Ph.D."]
["8760","RIV: RNDr. Martin Novák, Ph.D."]
["8761","RIV - MUDr. Jana Volejníková, Ph. D. "]
["8762","RIV - Doc. MUDr. David Karásek, Ph. D. "]
["8763","RIV: 2017 - MUDr. Richard Salzmann, Ph.D."]
["8764","RIV: 2017 - MUDr. Kateřina Menšíková, Ph.D."]
["8765","RIV - Doc. MUDr. František Mrázek, Ph. D. "]
["8766","RIV - MUDr. Adam Kuba"]
["8767","RIV - Prof. MUDr. Jiří Gallo, Ph. D. "]
["8768","RIV - Doc. MUDr. Karel Krejčí, Ph. D. "]
["8769","RIV: 2017 - Doc. MUDr. Radek Vodička, Ph.D."]
["8770","RIV: MUDr. Barbora Ludíková, Ph.D."]
["8771","RIV: 2017 - Doc. MUDr. Radek Vrba, Ph.D."]
["8772","RIV: 2017 - Mgr. Luděk Slavík, Ph.D."]
["8773","RIV - MUDr. Jan Hálek, Ph.D."]
["8774","RIV: 2017 - MUDr. Milan Král, Ph.D."]
["8775","RIV: 2017 - MUDr. Hana Suchánková, Ph.D."]
["8776","RIV: 2017 - MUDr. Jiří Kysučan, Ph.D."]
["8777","RIV: Prof. MUDr. Radovan Pilka, Ph.D."]
["8778","RIV: 2017 - Mgr. Lukáš Najdekr"]
["8779","RIV - MUDr. Anna Medková"]
["8780","RIV - MUDr. Eva Karásková"]
["8781","RIV - Doc. MUDr. Jiří Minařík, Ph. D. "]
["8782","RIV - RNDr. Pavlína Čapková, Ph. D. "]
["8783","RIV - MUDr. Eva Klásková, Ph. D. "]
["8784","RIV - MUDr. Jan Hanuliak"]
["8785","RIV - Doc. MUDr. Martin Hutyra, Ph. D. "]
["8786","RIV - MUDr. Pavel Hok"]
["8787","RIV - Dr. Gvansta Kharaishvili, Ph. D. "]
["8788","RIV - MUDr. Richard Salzman, Ph. D. - MEX "]
["8789","RIV - Doc. MUDr. Kateřina Menšíková, Ph. D. - MEX "]
["8790","Institucionální podpora - RIV"]
["8791","RIV - Doc. Mgr. Luděk Slavík, Ph. D. - MEX "]
["8792","RIV - Prof. MUDr. Jiří Gallo, Ph. D. - MEX "]
["8793","RIV: prof. MUDr. Milan Raška, PhD. - MEX"]
["8794","RIV: MUDr. Martin Loveček, PhD. - MEX"]
["8795","RIV: doc. MUDr. Martin Vrba , PhD. - MEX"]
["8796","RIV: doc. MUDr. Přemysl Falt, PhD. - MEX"]
["8797","RIV: prof. MUDr. Jiří Gallo, PhD. - MEX"]
["8798","RIV: prof. MUDr. Miloš Táborský, PhD. - MEX"]
["8799","RIV: doc. MUDr. Radek Vodička, PhD. - MEX"]
["8981","Úsek klinických studií"]
["8988","Pomocné středisko"]
["8999","Rozdíly zdravotních pojišťoven"]
["9001","Úsek ředitele"]
["9002","Kaple konto darů"]
["9003","Etická komise"]
["9004",""]
["9005","IOP Mod.a obnova přístroj.vyb.komplex.rehab.péče"]
["9006",""]
["9007",""]
["9008","IOP - Mod.obn.přístr.vyb.c.k.onkologické p. II"]
["9009","IOP - Mod.obn.přístr.vyb.cerebrovaskulárního centra FNOL"]
["9010","Organizace plesu FN"]
["9011","IOP- Mod.obn.přistr.vyb.komplex.kardiovas.centra"]
["9012","IOP - Mod.tech.vyb.v oblasti prevence nozokomiál.infek."]
["9013",""]
["9014",""]
["9015","IOP - Mod.obn.přístr.vyb.traumatologického c."]
["9016","Projekt OP RLZ"]
["9017",""]
["9018","Projekt WHO - HPH standardy"]
["9019",""]
["9021","Úsek léčebné péče"]
["9022","Konto darů - vzdělávání FNOL"]
["9023",""]
["9024",""]
["9025","Nemocniční dietolog"]
["9026","IOP - Mod.tech.vyb.v oblasti prevence nozokomiál.infek."]
["9027","Dárcovský konzultant"]
["9028","Oddělení vědy a výzkumu"]
["9029","Paliativní péče"]
["9031","Odbor hlavní sestry"]
["9032","Oddělení léčebné výživy"]
["9033",""]
["9034","Projekt vzdělávání nelék. oborů ve FNOL "]
["9035","E-learningová podpora výuky zdrav.info.pro střed.zdrav.personál"]
["9036","Dobrovolnické centrum FNOL"]
["9041","Útvar ekonomiky a zdravotních pojišťoven"]
["9042","Dotace PAP"]
["9043",""]
["9044",""]
["9045",""]
["9046","Ostatní náklady - pouze FKSP"]
["9051","Útvar hospodářsko technické správy"]
["9052",""]
["9054",""]
["9058",""]
["9059",""]
["9060",""]
["9061","Odbor investic"]
["9062",""]
["9063","IU: Odbor hlavního energetika"]
["9064",""]
["9065",""]
["9066",""]
["9067",""]
["9068",""]
["9069",""]
["9071","Personální úsek"]
["9072",""]
["9074",""]
["9075","IOP - Mod.obn.přístr.vyb.traumatologického cen. II"]
["9076","Školení KPR"]
["9077","IOP - Mod.obn.přístr.vyb.c.k.onkologické p. III"]
["9081","Úsek informačních technologií"]
["9082","Odbor informatiky"]
["9083",""]
["9084","Oddělení centrální spisovny"]
["9085","Oddělení telefonní ústředny"]
["9086","NIS (Nemocniční inf. systém)"]
["9087",""]
["9088",""]
["9089","IOP-zvýš.efekt.v oblasti diag. procesů (RTG)"]
["9091","Obchodní úsek"]
["9092",""]
["9093",""]
["9094",""]
["9095",""]
["9096","Odbor marketingu"]
["9097",""]
["9101","Petřivalského - Rapantův den "]
["9102","Markův den "]
["9103","Světový den dárců krve "]
["9104","Workshop vrchních sester a vedoucích laborantů "]
["9105","Pracovní konference III. Interní kliniky "]
["9106","Pracovní den - sekce mladých chirurgů "]
["9107","Dermatologická konference "]
["9108","Hirschův den "]
["9109","Pracovní seminář region. ARO a HDS CTR FNOL "]
["9110","Den sester perioperační péče "]
["9111","Olomoucký podiatrický pracovní den "]
["9112","Luklův kardiologický den "]
["9113","Regionálni sesterská kardiologická konference "]
["9114","Kampaň - dárcovství krve"]
["9115","Konference prenatál.diagnostiky.a fetální medicíny"]
["9116","Moravský kazuistický seminář - Kožní klinika"]
["9117","Kardiologická ROAD SHOW"]
["9118","Konference pediatrů a dětských sester"]
["9119","II. IK - nové možnosti v léčbě chronické hepatitidy C"]
["9120","Lymeská borelióza"]
["9121","Krajský alergologicko-imunologický seminář"]
["9122","Konto darů - vzdělávání-konference FNOL"]
["9123","Bezpečná aplikace do cévního řečiště"]
["9124","Hospital Management"]
["9125","Novinky v asistované reprodukci"]
["9126","II. IK - Stop dekubitům"]
["9127","Dětská klinika - Seminář mladých lékařů"]
["9128","Echokardiografický kurz I+II"]
["9129","Hojení ran v kostce"]
["9130","Celostátní konference DNA diagnostiky"]
["9131","Seminář pro odborníky pro nemoci z povolání"]
["9132","Seminář \"Nový zákon o veřejných zakázkách\""]
["9133","Kongres českých a slovenských dětských chirurgů"]
["9134","Odborná konference plicní kliniky"]
["9135","Simulační medicína KARIM"]
["9136","OKB - workshop"]
["9137","Seminář - náročné situace zdrav. praxe"]
["9138","Rozmaričovy soudně-lékařské pracovní dny"]
["9139","Workshop - Bioremodelace laxity kůže"]
["9140","Seminář \"Přínos molekulární detekce patogenů\""]
["9141","Seminář \"Aktuality v nemocničním lékarenství\""]
["9142","Pracovní dny chirurgie baze lební"]
["9143","Kvalifikační kurz SANITÁŘ"]
["9144","Péče o pacienty se žilními vstupy"]
["9145","Zavádění žilních vstupů pod UZ kontrolou"]
["9146","Péče o pacienty s parenterální výživou - domácí prostředí"]
["9147","Český národní kongres léčby malignit peritoneálního povrchu"]
["9148","MA FNOL: Konference a vzdělávací akce TO"]
["9149","MA FNOL: Pracovní dny OKB - dědičné metab. poruchy"]
["9150","MA FNOL: Konference PORGYN"]
["9151","MA FNOL: Běh za zdraví"]
["9152","MA FNOL: Spolupráce geriatrie a následné péče"]
["9153","MA FNOL: Gastrokurzy"]
["9154","MA FNOL: Olomouc Live endoskopy"]
["9155","MA FNOL: Best of Astro"]
["9204","Areál FNOL"]
["9205","Projekt SMO-zpřístupnění fort. pevnosti v areálu FNOL"]
["9206","Projekt OL kraje-zpřístupnění fort. pevnosti v areálu FNOL"]
["9207","\"Pevnůstka\" - archív "]
["9208","Údrž. Provoz.: OPŽP Regenerace zeleně v FN Olomouc"]
["9209","Areál - ulice Profesora Fuky"]
["9301","Sklad ZPr (sledování režijních nákladů pracoviště)"]
["9305","Ostatní provozy,sklady,stěhovací četa"]
["9306","Ostraha FNOL"]
["9308","Parková skupina"]
["9401","Provoz prádelny"]
["9402","Provoz dopravy - sanitní - převoz pacientů ve FNOL"]
["9403","Provoz dopravy - osobní"]
["9404","Provoz dopravy - nákladní"]
["9405","Provoz dopravy - sanitní - převoz zdrav. pojišťovny"]
["9409","Údržba stavební"]
["9410","Údržba ZVIT"]
["9411","Provoz potrubní pošty"]
["9412","Poro. služby: Provoz distribuce prádla"]
["9501","Provoz stravování - ostatní stravování"]
["9502","Provoz stravování - tablet, pacientská strava"]
["9503","Provoz stravování - Kantýna"]
["9504",""]
["9505","Provoz stravování - vlastní výroba"]
["9506","IOP - Mod.tech.vyb.v oblasti prevence nozokomiál.infek."]
["9601","Ubytovny"]
["9655","Byty "]
["9701","Stavební úpravy neurologie"]
["9702","Přístavba objektu P pro HOK "]
["9703","Stavby: SÚ dospávací haly v objektu A /KARIM"]
["9704","SÚ realizace KTVL"]
["9705","Parkoviště u lékárny"]
["9706","Rekonstrukce zákrokového sálu - ORT"]
["9707","Stavby: Vjezdový závorový systém"]
["9708","SÚ modernizace jídelny - Provoz stravování"]
["9710","Parkování pod Dětskou klinikou"]
["9712","Stavby: SÚ operační sál č. 2 v 3NP / NCHIR"]
["9713","Napojení areálu Hněvotínská"]
["9714","SÚ objektu M1 a M2 - NEUR"]
["9715","SÚ vstupů do budovy D1 a D2"]
["9716","Stavby: SÚ 1.NP a 1.PP/ORL"]
["9717","Stavby: SÚ JIRP / DK"]
["9719","Stavby: SÚ objektu D - únikové cesty"]
["9720","Stavby: Lapák tuků"]
["9721","Stavby: Onkologický stacionář"]
["9723","Stavby: SÚ pracoviště sterilizace v 1. PP/ORT"]
["9724","Stavby: Rekonstrukce 1.PP skladu potravin"]
["9725","Stavby: SÚ 2.NP objektu A"]
["9736","Stavby: Zateplení KZL"]
["9738","Stavby: SÚ RTG kliniky - budova A/1.PP"]
["9739","Stavby: SÚ objektu U - PSY"]
["9743","Stavby: SÚ pro přemístění 1 IK"]
["9745","SÚ JIP a arytmologie I. IK"]
["9751","Potrubní pošta"]
["9753","Stavby: Ozařovací rentgen ONK"]
["9754","Zateplení 3IK + KNM"]
["9756","Stavby: Centralizace dětské operativy"]
["9759","Zateplení  OKB "]
["9760","Stavby: SÚ pro IOP ONKO II - RTG"]
["9761","Stavby: SÚ pro IOP ONKO II - KNM"]
["9762","Zateplení ORT"]
["9763","Investice - výstavba TO"]
["9764","Zateplení DK"]
["9765","Příprava rekonstrukce hlavní budovy"]
["9767","Zateplení a bezbariérovost KZL"]
["9768","Novostavba 2IK a Geriatrie"]
["9769","SÚ budovy D2 - zřízení NIP a DIOP"]
["9770","Úprava LEK v budově A"]
["9772","Přesun laboratoří HOK z budovy K do budovy P"]
["9773","Stavby: Zdroj chladu pro objekt \"A\""]
["9774","Stavby: Chodníky areálu FNOL"]
["9776","Stavby: Fort Tafelberg, úprava jižního bloku"]
["9777","Stavba - NTMC Národní telemedicínské centrum"]
["9779","Laboratoře GEN/T"]
["9780","Stavby: Rekonstrukce výtahů"]
["9782","Stavby: Nástavba budovy A"]
["9783","Radiofarmaka KNM"]
["9788","Stavby: SÚ objektu I - 1.PP / OKB"]
["9792","Stavby: Úprava prac. děts. alergolog. a pneumolog."]
["9799","Stavby: Lékárna - novostavba"]
["9801","Krizová připravenost - MZ"]
["9802","Zdravotní výchova - MZ"]
["9803","Výuka studentů - MZ"]
["9804","Čítárna - knihovna - MZ"]
["9805","Program bezpečnosti a kvality zdrav. péče - MZ"]
["9806","Krizová připravenost - MZ - příjem hromad.postižení osob"]
["9807","Krizová připravenost - Traumateam ČR - RAFEX 2014"]
["9808","TranMZČR: Zvýšení ochr. měkkých cílů v res.zdr.-MZ"]
["9809","TranMZČR: Psychosoc. podpora zdrav. prac.v 2020-MZ"]
["9810","TranMZČR: Zabezpečení svoláv. a varovného sys.-MZ"]
["9811","TranMZČR: Zvýšení ochr.měkkých cílů-2-zubní kl.-MZ"]
["9812","Refundace ZO OS, SČL,Unie sester "]
["9813","MEDEVAC"]
["9814","Konference \"Zdraví v Evropě\" (Norské fondy)"]
["9815","Komunikační kampaň FNOL (nekuřácká nemocnice)"]
["9816","Projekt WHO - HPH konference "]
["9817","Personální stabilizace ve zdravotnictví"]
["9818","Systém psychosociální intervenční služby SPIS"]
["9819","TranMZČR: Bezpečnost a kvalita zdravotní péče"]
["9901","Pronájmy Areál FNO"]
["9910","Pronájmy Areál Hněvotínská vč.kotelny"]
["9920","Pronájmy Areál Heliport"]
["9930","Pronájmy Areál Karafiátova"]
["9940","Pouze energie"]
["9950","Pronájem reklamních ploch"]
["9998","Daň z nemovitosti + různé"]
["9999","Pomocné středisko pro inter. potřeby"]